fUSD/lending_fUSD_20240909
["ID","MTS","AMOUNT","RATE_DAILY","PERIOD"]
[337584134,1725861044009,-150.0,0.00013831,2]
[337584135,1725861044018,-150.6,0.00013831,2]
[337584136,1725861044027,-150.0,0.00013831,2]
[337584137,1725861044037,-150.0,0.00013831,2]
[337584138,1725861044046,-151.21,0.00013831,2]
[337584139,1725861044056,-150.0,0.00013831,2]
[337584140,1725861044066,-150.0,0.00013831,2]
[337584141,1725861044076,-150.0,0.00013831,2]
[337584142,1725861044085,-150.0,0.00013831,2]
[337584143,1725861044095,-238470.99983,0.000139,3]
[337584144,1725861044104,-321.5357288,0.000139,2]
[337584145,1725861044114,-222.39973741,0.000139,2]
[337584146,1725861044124,-334.91901394,0.00013904,2]
[337584147,1725861044133,-286.37844699,0.00013904,2]
[337584148,1725861044143,-500.0,0.00014,2]
[337584149,1725861044153,-1371.54696637,0.00014011,2]
[337584150,1725861044163,-544.75,0.0001402,2]
[337584151,1725861044173,-435.2,0.00014048,2]
[337584152,1725861044182,-1425.09908,0.0001405,2]
[337584153,1725861044192,-564.8,0.00014119,2]
[337584154,1725861044201,-321.5357288,0.0001415,2]
[337584155,1725861044211,-150.0,0.00014192,2]
[337584156,1725861044221,-150.0,0.00014192,2]
[337584157,1725861044232,-150.0,0.00014192,2]
[337584158,1725861044241,-150.0,0.00014192,2]
[337584159,1725861044251,-150.0,0.00014192,2]
[337584160,1725861044260,-150.0,0.00014192,2]
[337584161,1725861044270,-150.0,0.00014192,2]
[337584162,1725861044279,-150.0,0.00014192,2]
[337584163,1725861044288,-150.0,0.00014192,2]
[337584164,1725861044297,-150.0,0.00014192,2]
[337584165,1725861044308,-150.0,0.00014192,2]
[337584166,1725861044318,-150.0,0.00014192,2]
[337584167,1725861044327,-150.0,0.00014192,2]
[337584168,1725861044336,-150.0,0.00014192,2]
[337584169,1725861044347,-150.0,0.00014192,2]
[337584170,1725861044358,-150.0,0.00014192,2]
[337584171,1725861044369,-150.0,0.00014192,2]
[337584172,1725861044379,-150.0,0.00014192,2]
[337584173,1725861044388,-374.67,0.00014192,2]
[337584174,1725861044397,-1106.08,0.000142,2]
[337584175,1725861044407,-173.62,0.00014216,2]
[337584176,1725861044416,-1371.54696637,0.00014233,2]
[337584177,1725861044426,-766.0,0.00014233,2]
[337584178,1725861044435,-1000.0,0.00014342,2]
[337584179,1725861044445,-321.5357288,0.000144,2]
[337584180,1725861044454,-1371.54696637,0.00014456,2]
[337584181,1725861044464,-179.45648,0.00014521,2]
[337584182,1725861044473,-1000.0,0.000146,2]
[337584183,1725861044485,-168.81,0.00014612,2]
[337584184,1725861044494,-279.99,0.00014625,2]
[337584185,1725861044503,-321.5357288,0.0001465,2]
[337584186,1725861044512,-150.0,0.00014653,2]
[337584187,1725861044521,-150.0,0.00014653,2]
[337584188,1725861044531,-150.0,0.00014653,2]
[337584189,1725861044540,-150.0,0.00014653,2]
[337584190,1725861044549,-150.0,0.00014653,2]
[337584191,1725861044558,-1371.54696637,0.00014678,2]
[337584192,1725861044567,-1000.0,0.000147,2]
[337584193,1725861044577,-150.0,0.00014718,2]
[337584194,1725861044589,-150.0,0.00014718,2]
[337584195,1725861044599,-150.0,0.0001472,2]
[337584196,1725861044609,-150.0,0.00014722,2]
[337584197,1725861044618,-150.0,0.00014726,2]
[337584198,1725861044627,-150.0,0.00014727,2]
[337584199,1725861044637,-150.0,0.00014732,2]
[337584200,1725861044648,-150.0,0.00014739,2]
[337584201,1725861044660,-1500.0,0.00014739,2]
[337584202,1725861044671,-150.0,0.00014742,2]
[337584203,1725861044680,-150.0,0.00014744,2]
[337584204,1725861044691,-150.0,0.00014745,2]
[337584205,1725861044701,-150.0,0.00014747,2]
[337584206,1725861044710,-150.0,0.00014747,2]
[337584207,1725861044719,-1500.0,0.00014747,2]
[337584208,1725861044730,-150.0,0.00014748,2]
[337584209,1725861044740,-150.0,0.0001475,2]
[337584210,1725861044749,-150.0,0.00014751,2]
[337584211,1725861044759,-150.0,0.00014755,2]
[337584212,1725861044768,-150.0,0.00014762,2]
[337584213,1725861044778,-150.0,0.00014763,2]
[337584214,1725861044788,-237.03711621,0.00014765,2]
[337584215,1725861044798,-150.0,0.00014771,2]
[337584216,1725861044810,-150.0,0.00014773,2]
[337584217,1725861044820,-150.0,0.00014774,2]
[337584218,1725861044830,-150.0,0.00014779,2]
[337584219,1725861044839,-150.0,0.00014779,2]
[337584220,1725861044850,-150.0,0.00014782,2]
[337584221,1725861044859,-150.0,0.00014783,2]
[337584222,1725861044869,-150.0,0.00014783,2]
[337584223,1725861044878,-150.0,0.00014785,2]
[337584224,1725861044888,-150.0,0.00014786,2]
[337584225,1725861044897,-150.0,0.00014786,2]
[337584226,1725861044906,-150.0,0.00014787,2]
[337584227,1725861044915,-150.0,0.00014787,2]
[337584228,1725861044924,-150.0,0.00014788,2]
[337584229,1725861044933,-150.0,0.00014788,2]
[337584230,1725861044943,-150.0,0.00014792,2]
[337584231,1725861044954,-150.0,0.00014793,2]
[337584232,1725861044964,-710.51,0.00014798,2]
[337584233,1725861044973,-6459.66387304,0.00014799,2]
[337584234,1725861044984,-253.011687,0.000148,4]
[337584235,1725861044993,-447.0,0.000148,2]
[337584236,1725861045002,-624.0,0.000148,2]
[337584237,1725861045012,-933.591,0.000148,2]
[337584238,1725861045021,-811.0,0.000148,2]
[337584239,1725861045031,-553.0,0.000148,2]
[337584240,1725861045041,-248.0,0.000148,2]
[337584241,1725861045050,-3343.0,0.000148,2]
[337584242,1725861045059,-150.0,0.000148,2]
[337584243,1725861045069,-577.792,0.000148,2]
[337584244,1725861045078,-289.851,0.000148,2]
[337584245,1725861045087,-386.034,0.000148,2]
[337584246,1725861045096,-257.933,0.000148,2]
[337584247,1725861045106,-1000.0,0.000148,2]
[337584248,1725861045115,-1500.0,0.00014802,2]
[337584249,1725861045124,-150.0,0.00014809,2]
[337584250,1725861045133,-150.0,0.00014812,2]
[337584251,1725861045143,-150.0,0.0001482,2]
[337584252,1725861045152,-150.0,0.00014822,2]
[337584253,1725861045162,-150.0,0.00014827,2]
[337584254,1725861045171,-150.0,0.00014828,2]
[337584255,1725861045180,-150.0,0.00014832,2]
[337584256,1725861045189,-150.0,0.00014834,2]
[337584257,1725861045199,-150.0,0.00014839,2]
[337584258,1725861045207,-150.0,0.00014841,2]
[337584259,1725861045217,-150.0,0.00014841,2]
[337584260,1725861045226,-150.0,0.00014843,2]
[337584261,1725861045235,-150.0,0.00014844,2]
[337584263,1725861045711,-150.0,0.00014844,2]
[337584264,1725861045722,-150.0,0.00014849,2]
[337584265,1725861045732,-150.0,0.00014852,2]
[337584266,1725861045741,-150.0,0.00014853,2]
[337584267,1725861045752,-150.0,0.00014854,2]
[337584268,1725861045764,-150.0,0.00014856,2]
[337584269,1725861045773,-150.0,0.00014862,2]
[337584270,1725861045784,-150.0,0.00014863,2]
[337584271,1725861045794,-150.0,0.00014867,2]
[337584272,1725861045808,-150.0,0.00014873,2]
[337584273,1725861045818,-152.0,0.00014876,3]
[337584274,1725861045828,-150.0,0.00014881,2]
[337584275,1725861045839,-150.0,0.00014883,2]
[337584276,1725861045848,-150.0,0.00014884,2]
[337584277,1725861045858,-150.0,0.00014887,2]
[337584279,1725861045867,-150.0,0.00014891,2]
[337584281,1725861045876,-150.0,0.00014895,2]
[337584283,1725861045886,-193.54998947,0.00014895,2]
[337584284,1725861045895,-150.0,0.00014897,2]
[337584286,1725861045904,-150.0,0.00014898,2]
[337584287,1725861045914,-150.0,0.00014898,2]
[337584288,1725861045924,-150.0,0.00014898,2]
[337584289,1725861045933,-23209.32620428,0.00014899,2]
[337584290,1725861045942,-1000.0,0.000149,3]
[337584291,1725861045952,-1000.0,0.000149,3]
[337584292,1725861045961,-1000.0,0.000149,3]
[337584293,1725861045971,-1163.0,0.000149,4]
[337584294,1725861045980,-1000.0,0.000149,3]
[337584295,1725861045990,-1000.0,0.000149,4]
[337584296,1725861045999,-1000.0,0.000149,2]
[337584297,1725861046008,-1007.0,0.000149,3]
[337584298,1725861046018,-58762.86354985,0.000149,2]
[337584299,1725861046027,-150.0,0.000149,2]
[337584300,1725861046037,-150.0,0.000149,2]
[337584301,1725861046046,-1371.54696637,0.000149,2]
[337584302,1725861046055,-321.5357288,0.000149,2]
[337584303,1725861046065,-222.39973741,0.000149,2]
[337584304,1725861046074,-150.0,0.00014903,2]
[337584305,1725861046084,-150.0,0.00014904,2]
[337584306,1725861046094,-150.0,0.00014906,2]
[337584307,1725861046104,-150.0,0.00014908,2]
[337584308,1725861046113,-150.0,0.00014913,2]
[337584309,1725861046123,-150.0,0.00014915,2]
[337584310,1725861046132,-150.0,0.00014919,2]
[337584311,1725861046143,-150.0,0.00014921,2]
[337584312,1725861046153,-150.0,0.00014924,2]
[337584313,1725861046163,-150.0,0.00014925,2]
[337584314,1725861046172,-1500.0,0.00014925,2]
[337584315,1725861046182,-150.0,0.00014928,2]
[337584316,1725861046192,-150.0,0.00014932,2]
[337584317,1725861046201,-150.0,0.00014937,2]
[337584318,1725861046210,-150.0,0.00014938,2]
[337584319,1725861046220,-150.0,0.00014944,2]
[337584320,1725861046230,-150.0,0.00014945,2]
[337584321,1725861046240,-150.0,0.00014946,2]
[337584322,1725861046249,-150.0,0.00014947,2]
[337584323,1725861046260,-150.0,0.00014948,2]
[337584324,1725861046269,-150.0,0.00014957,2]
[337584325,1725861046279,-150.0,0.00014959,2]
[337584326,1725861046289,-150.0,0.00014963,2]
[337584327,1725861046299,-345.63383776,0.00014968,2]
[337584328,1725861046315,-759.53689346,0.00014968,2]
[337584329,1725861046325,-150.0,0.0001497,2]
[337584330,1725861046335,-179.82323161,0.00014973,2]
[337584331,1725861046344,-500.0,0.00014973,2]
[337584332,1725861046353,-501.03616551,0.00014973,2]
[337584333,1725861046365,-201.2433002,0.00014973,2]
[337584334,1725861046375,-209.02429914,0.00014973,2]
[337584335,1725861046385,-156.2508782,0.00014973,2]
[337584336,1725861046396,-150.0,0.00014974,2]
[337584337,1725861046407,-150.0,0.00014976,2]
[337584338,1725861046416,-150.0,0.00014976,2]
[337584339,1725861046425,-150.0,0.00014978,2]
[337584340,1725861046435,-150.0,0.00014988,2]
[337584341,1725861046444,-150.0,0.00014989,2]
[337584342,1725861046454,-1236.4947016,0.0001499,2]
[337584343,1725861046463,-1371.9378619,0.0001499,2]
[337584344,1725861046472,-81.16240436,0.0001499,2]
[337584345,1725861046489,-1426.21861794,0.0001499,2]
[337584346,1725861046498,-1642.8241826,0.0001499,2]
[337584347,1725861046508,-1778.2673429,0.0001499,2]
[337584348,1725861046517,-669.97210036,0.0001499,2]
[337584349,1725861046528,-940.096497,0.0001499,2]
[337584350,1725861046538,-463.29586362,0.0001499,2]
[337584351,1725861046549,-1733.79859362,0.0001499,2]
[337584352,1725861046559,-185.73024324,0.0001499,2]
[337584353,1725861046570,-3856.72843436,0.0001499,2]
[337584354,1725861046579,-678.27589814,0.0001499,2]
[337584355,1725861047409,-275.18000013,0.0001499,2]
[337584356,1725861047420,-1238.73139025,0.0001499,2]
[337584357,1725861047432,-2085.56701208,0.0001499,2]
[337584358,1725861047442,-4513.0499237,0.0001499,2]
[337584359,1725861047451,-813.3696335,0.0001499,2]
[337584360,1725861047463,-3664.0000002,0.0001499,2]
[337584361,1725861047474,-270.975913,0.0001499,2]
[337584362,1725861047485,-175.60597985,0.0001499,2]
[337584363,1725861047745,-150.0,0.000136,2]
[337584364,1725861047755,-163.06330969,0.0001499,2]
[337584365,1725861047766,-926.74023486,0.0001499,2]
[337584366,1725861047776,-131.96600418,0.0001499,2]
[337584367,1725861047788,-962.22634172,0.0001499,2]
[337584368,1725861047797,-922.9751674,0.0001499,2]
[337584369,1725861047811,-751.7579888,0.0001499,2]
[337584370,1725861047820,-580.5408103,0.0001499,2]
[337584371,1725861047829,-636.66669182,0.0001499,2]
[337584372,1725861047841,-573.27155235,0.0001499,2]
[337584373,1725861047864,-544.71540273,0.0001499,2]
[337584374,1725861047873,-1447.9789458,0.0001499,2]
[337584375,1725861047883,-1141.3042447,0.0001499,2]
[337584376,1725861047892,-834.6295436,0.0001499,2]
[337584377,1725861047902,-527.9548425,0.0001499,2]
[337584378,1725861047911,-153.53,0.0001499,2]
[337584379,1725861047920,-5663.4154785,0.00014999,2]
[337584380,1725861047931,-10631.26668197,0.00014999,2]
[337584381,1725861047942,-580.59172386,0.00014999,2]
[337584382,1725861047954,-2777.09675938,0.00014999,2]
[337584383,1725861047966,-1367.99179144,0.00014999,2]
[337584384,1725861047978,-5886.8478948,0.00014999,2]
[337584385,1725861048010,-276.345,0.00014999,2]
[337584387,1725861407579,1385.8,0.00010993,2]
[337584388,1725861507377,158.3,0.00010959,2]
[337584390,1725861801838,1000.0,0.00028,120]
[337584405,1725862025132,1316.51,0.00011068,2]
[337584415,1725862207014,-1162.34963389,0.00012856,2]
[337584432,1725862231623,-54.94784346,0.00012856,2]
[337584434,1725862231636,-500.0,0.00012946,2]
[337584436,1725862231651,-904.01,0.00012956,2]
[337584437,1725862231666,-226.56,0.00012984,2]
[337584438,1725862231678,-250.0,0.0001303,2]
[337584439,1725862231691,-150.0,0.00013095,2]
[337584440,1725862231704,-738.88,0.00013095,2]
[337584441,1725862231716,-1067.79,0.00013109,2]
[337584442,1725862231728,-1067.79,0.00013113,2]
[337584443,1725862231742,-200.0,0.00013115,2]
[337584444,1725862231755,-499.99,0.00013116,2]
[337584445,1725862231768,-1067.79,0.00013116,2]
[337584446,1725862231781,-1067.79,0.00013119,2]
[337584447,1725862231793,-1067.79,0.00013123,2]
[337584448,1725862231806,-5168.59,0.00013126,2]
[337584449,1725862231820,-261.12,0.00013126,2]
[337584450,1725862231833,-1067.79,0.00013126,2]
[337584451,1725862231846,-1067.79,0.0001313,2]
[337584452,1725862231858,-1067.79,0.00013133,2]
[337584453,1725862231870,-2000.0,0.00013134,2]
[337584454,1725862231884,-1067.79,0.00013137,2]
[337584455,1725862231897,-1067.79,0.0001314,2]
[337584456,1725862231909,-1067.79,0.00013144,2]
[337584457,1725862231923,-1067.79,0.00013147,2]
[337584458,1725862231936,-1067.79,0.00013151,2]
[337584459,1725862231949,-562.43,0.00013154,2]
[337584460,1725862231961,-1067.79,0.00013154,2]
[337584461,1725862231974,-150.0,0.00013154,2]
[337584462,1725862231987,-1067.79,0.00013157,2]
[337584463,1725862231999,-1067.79,0.00013161,2]
[337584464,1725862232012,-604.04,0.00013161,2]
[337584465,1725862232026,-1067.79,0.00013164,2]
[337584466,1725862232039,-1067.79,0.00013168,2]
[337584467,1725862232051,-1067.79,0.00013171,2]
[337584468,1725862232065,-1067.79,0.00013175,2]
[337584469,1725862232078,-2364.79,0.00013178,2]
[337584470,1725862232090,-322.85,0.00013178,2]
[337584471,1725862232102,-500.0,0.000132,2]
[337584472,1725862232115,-331.68886943,0.000132,2]
[337584473,1725862232129,-500.0,0.000132,2]
[337584474,1725862232141,-5575.04,0.00013219,2]
[337584475,1725862232154,-299.99,0.00013219,2]
[337584476,1725862232167,-1074.43,0.00013227,2]
[337584477,1725862232180,-161.71,0.0001323,2]
[337584478,1725862232193,-250.0,0.00013248,2]
[337584479,1725862232205,-882.19,0.00013264,2]
[337584480,1725862232217,-698.27,0.00013322,2]
[337584481,1725862232229,-14576.47248075,0.00013328,2]
[337584482,1725862232242,-1316.51,0.00013332,2]
[337584483,1725862232254,-23900.0,0.00013369,2]
[337584484,1725862232266,-250.0,0.00013374,2]
[337584485,1725862232279,-200.0,0.00013479,2]
[337584486,1725862232292,-150.0,0.00013488,2]
[337584487,1725862232305,-172.87,0.00013501,2]
[337584488,1725862232318,-356.9772,0.00013584,2]
[337584489,1725862232330,-5790.5417,0.00013599,2]
[337584490,1725862232345,-166.35,0.00013699,2]
[337584491,1725862232357,-178.72,0.00013716,2]
[337584492,1725862232370,-205.93,0.00013731,2]
[337584493,1725862232383,-1000.0,0.00014,14]
[337584494,1725862232396,-151.53,0.00014192,2]
[337584495,1725862233459,-150.0,0.00014192,2]
[337584496,1725862233513,-150.0,0.00014192,2]
[337584497,1725862233559,-150.0,0.00014192,2]
[337584498,1725862233588,-255.0,0.00014259,2]
[337584499,1725862233601,-995.47,0.000143,2]
[337584500,1725862233611,-181.91,0.00014446,2]
[337584501,1725862233620,-421.24760668,0.00014541,2]
[337584502,1725862233630,-918.83422919,0.0001457,2]
[337584503,1725862233639,-226.56,0.00014607,2]
[337584504,1725862233649,-5070.37967486,0.00014699,2]
[337584505,1725862233658,-482.55343431,0.00014699,2]
[337584506,1725862233669,-1000.0,0.000147,2]
[337584507,1725862233682,-5070.3796748,0.00014721,2]
[337584508,1725862233692,-1200.5774,0.00014721,2]
[337584509,1725862233701,-150.0,0.00014728,2]
[337584510,1725862233711,-150.0,0.00014732,2]
[337584511,1725862233720,-738.88,0.00014732,2]
[337584512,1725862233730,-150.0,0.00014733,2]
[337584513,1725862233740,-150.0,0.00014736,2]
[337584514,1725862233749,-150.0,0.00014739,2]
[337584515,1725862233759,-150.0,0.0001474,2]
[337584516,1725862233769,-150.0,0.00014741,2]
[337584517,1725862233779,-5070.3796748,0.00014744,2]
[337584518,1725862233788,-150.0,0.00014747,2]
[337584519,1725862233798,-150.0,0.00014748,2]
[337584520,1725862233808,-150.0,0.00014758,2]
[337584521,1725862233818,-150.0,0.00014759,2]
[337584522,1725862233827,-150.0,0.0001476,2]
[337584523,1725862233837,-150.0,0.00014762,2]
[337584524,1725862233847,-150.0,0.00014762,2]
[337584525,1725862233856,-261.12,0.00014767,2]
[337584526,1725862233865,-150.0,0.00014768,2]
[337584527,1725862233875,-150.0,0.00014772,2]
[337584528,1725862233885,-150.0,0.00014773,2]
[337584529,1725862233894,-150.0,0.00014776,2]
[337584530,1725862233903,-150.0,0.00014777,2]
[337584531,1725862233913,-150.0,0.00014786,2]
[337584532,1725862233928,-150.0,0.00014786,2]
[337584533,1725862233938,-150.0,0.00014788,2]
[337584534,1725862233948,-150.0,0.00014788,2]
[337584535,1725862233957,-150.0,0.00014788,2]
[337584536,1725862233967,-949.82,0.00014789,3]
[337584537,1725862233977,-791.52,0.00014789,3]
[337584538,1725862233987,-395.76,0.00014789,3]
[337584539,1725862233997,-197.88,0.00014789,3]
[337584540,1725862234007,-593.64,0.00014789,3]
[337584541,1725862234017,-150.0,0.00014791,2]
[337584542,1725862234026,-150.0,0.00014792,2]
[337584543,1725862234036,-150.0,0.00014795,2]
[337584544,1725862234046,-3180.1108,0.00014799,2]
[337584545,1725862234055,-1240.9058,0.00014799,2]
[337584546,1725862234065,-181.5955,0.00014799,2]
[337584547,1725862234074,-62378.3743,0.00014799,2]
[337584548,1725862234084,-1000.0,0.00014799,2]
[337584549,1725862234093,-224.84747296,0.00014799,2]
[337584550,1725862234103,-328.60153968,0.00014799,2]
[337584551,1725862234113,-1638.0,0.000148,2]
[337584552,1725862234122,-150.0,0.00014803,2]
[337584553,1725862234132,-150.0,0.00014804,2]
[337584554,1725862234141,-150.0,0.00014805,2]
[337584555,1725862234151,-150.0,0.00014806,2]
[337584556,1725862234161,-150.0,0.0001481,2]
[337584557,1725862234172,-150.0,0.0001481,2]
[337584558,1725862234182,-224.8474729,0.00014813,2]
[337584559,1725862234192,-150.0,0.00014814,2]
[337584560,1725862234202,-150.0,0.00014814,2]
[337584561,1725862234212,-150.0,0.00014815,2]
[337584562,1725862234221,-328.60153968,0.00014816,2]
[337584563,1725862234231,-150.0,0.00014826,2]
[337584564,1725862234241,-150.0,0.00014827,2]
[337584565,1725862234250,-224.8474729,0.00014828,2]
[337584566,1725862234260,-150.0,0.00014828,2]
[337584567,1725862234269,-150.0,0.00014828,2]
[337584568,1725862234279,-150.0,0.00014828,2]
[337584569,1725862234289,-150.0,0.00014829,2]
[337584570,1725862234298,-150.0,0.00014829,2]
[337584571,1725862234308,-328.60153968,0.00014833,2]
[337584572,1725862234317,-150.0,0.00014838,2]
[337584573,1725862234327,-150.0,0.00014839,2]
[337584574,1725862234336,-224.8474729,0.00014842,2]
[337584575,1725862234346,-150.0,0.00014844,2]
[337584576,1725862234355,-328.60153968,0.0001485,2]
[337584577,1725862234365,-150.0,0.00014856,2]
[337584578,1725862234374,-224.8474729,0.00014857,2]
[337584579,1725862234384,-150.0,0.00014857,2]
[337584580,1725862234394,-150.0,0.00014862,2]
[337584581,1725862234403,-150.0,0.00014864,2]
[337584582,1725862234414,-328.60153968,0.00014866,2]
[337584583,1725862234426,-150.0,0.00014867,2]
[337584584,1725862234436,-224.8474729,0.00014871,2]
[337584585,1725862234446,-150.0,0.00014873,2]
[337584586,1725862234456,-150.0,0.00014875,2]
[337584587,1725862234466,-328.60153968,0.00014883,2]
[337584588,1725862234476,-150.0,0.00014885,2]
[337584589,1725862234485,-224.8474729,0.00014886,2]
[337584590,1725862234495,-150.0,0.00014886,2]
[337584591,1725862234504,-150.0,0.00014886,2]
[337584592,1725862234514,-150.0,0.00014888,2]
[337584593,1725862234523,-150.0,0.00014889,2]
[337584594,1725862234533,-150.0,0.00014889,2]
[337584595,1725862234543,-54727.2314064,0.0001489,3]
[337584596,1725862234552,-151.64,0.0001489,2]
[337584597,1725862234562,-150.0,0.00014895,2]
[337584598,1725862234571,-150.0,0.00014896,2]
[337584599,1725862234581,-18731.2092,0.00014899,2]
[337584600,1725862234591,-936.8881,0.00014899,2]
[337584601,1725862234600,-4982.5834,0.00014899,2]
[337584602,1725862234609,-38970.8497,0.00014899,2]
[337584603,1725862234619,-7530.9399,0.00014899,2]
[337584604,1725862234628,-1000.0,0.00014899,2]
[337584605,1725862234637,-13872.38396869,0.00014899,2]
[337584606,1725862236820,-5488.91702948,0.00014899,2]
[337584610,1725862237655,-1852.42,0.00012948,2]
[337584611,1725862237664,-5070.3796748,0.00014766,2]
[337584612,1725862237674,-7500.0,0.000148,2]
[337584613,1725862237683,-199.5544492,0.0001489,2]
[337584614,1725862237693,-80638.69900183,0.00014899,2]
[337584615,1725862237702,-2326.4415,0.00014899,2]
[337584616,1725862237713,-16710.2738,0.00014899,2]
[337584617,1725862237723,-500.0,0.00014899,2]
[337584618,1725862237733,-342.20702753,0.00014899,2]
[337584619,1725862237742,-500.0,0.00014899,2]
[337584620,1725862237753,-324.12840728,0.00014899,2]
[337584621,1725862237763,-340.85777677,0.000149,2]
[337584622,1725862237773,-763.8229,0.000149,2]
[337584623,1725862237784,-4964.9738,0.000149,2]
[337584624,1725862237792,-3351.6036,0.000149,2]
[337584625,1725862237802,-1197.813,0.000149,2]
[337584626,1725862237811,-245000.0,0.000149,2]
[337584627,1725862237821,-500.0,0.000149,2]
[337584628,1725862237830,-152.83558693,0.000149,2]
[337584629,1725862237839,-224.8474729,0.000149,2]
[337584630,1725862237848,-1171.26175983,0.000149,2]
[337584631,1725862237857,-1000.0,0.000149,2]
[337584632,1725862237866,-328.60153968,0.000149,2]
[337584633,1725862237875,-150.0,0.00014902,2]
[337584634,1725862237885,-150.0,0.00014904,2]
[337584635,1725862237894,-150.0,0.00014905,2]
[337584636,1725862237904,-150.0,0.00014907,2]
[337584637,1725862237913,-150.0,0.00014908,2]
[337584638,1725862237921,-168.762,0.0001491,2]
[337584639,1725862237930,-150.0,0.00014911,2]
[337584640,1725862237940,-150.0,0.00014913,2]
[337584641,1725862237951,-150.0,0.00014919,2]
[337584642,1725862237960,-150.0,0.00014922,2]
[337584643,1725862237969,-150.0,0.00014923,2]
[337584645,1725862237980,-150.0,0.0001493,2]
[337584646,1725862237989,-150.0,0.00014931,2]
[337584647,1725862237998,-150.0,0.00014935,2]
[337584648,1725862238008,-150.0,0.00014939,2]
[337584649,1725862238017,-150.0,0.00014939,2]
[337584650,1725862238027,-150.0,0.0001494,2]
[337584651,1725862238036,-5472.72314064,0.00014941,3]
[337584652,1725862238045,-150.0,0.00014947,2]
[337584653,1725862238054,-150.0,0.00014948,2]
[337584654,1725862238064,-150.0,0.00014949,2]
[337584655,1725862238073,-150.0,0.0001495,2]
[337584656,1725862238083,-150.0,0.0001495,2]
[337584657,1725862238093,-150.0,0.00014951,2]
[337584658,1725862238102,-150.0,0.00014951,2]
[337584659,1725862238112,-150.0,0.00014964,2]
[337584660,1725862238122,-150.0,0.00014965,2]
[337584661,1725862238131,-150.0,0.00014968,2]
[337584662,1725862238140,-150.0,0.00014969,2]
[337584663,1725862238149,-150.0,0.0001497,2]
[337584664,1725862238158,-5472.72314064,0.0001497,3]
[337584665,1725862238168,-150.0,0.00014971,2]
[337584666,1725862238178,-502.21552204,0.00014973,2]
[337584667,1725862238187,-500.0,0.00014973,2]
[337584668,1725862238196,-202.74531739,0.00014973,2]
[337584669,1725862238538,-150.0,0.00014974,2]
[337584670,1725862238643,-150.0,0.00014975,2]
[337584671,1725862238652,-150.0,0.00014978,2]
[337584672,1725862238662,-5472.72314064,0.0001498,3]
[337584673,1725862238671,-150.0,0.00014985,2]
[337584674,1725862238680,-5472.72314064,0.00014986,3]
[337584675,1725862238690,-65672.6776877,0.00014989,3]
[337584676,1725862238699,-151.64,0.00014989,2]
[337584677,1725862238709,-10945.4462813,0.0001499,3]
[337584678,1725862238720,-235.161553,0.0001499,2]
[337584679,1725862238730,-235.161553,0.0001499,2]
[337584680,1725862238740,-235.161553,0.0001499,2]
[337584681,1725862238751,-235.161553,0.0001499,2]
[337584682,1725862238760,-235.161553,0.0001499,2]
[337584683,1725862238770,-834.7490224,0.0001499,2]
[337584684,1725862238780,-834.7490224,0.0001499,2]
[337584685,1725862238791,-834.7490224,0.0001499,2]